bitfinex/quotes_BTCUSD_20250428
["timestamp","ask_amount","ask_price","bid_price","bid_amount"]
[1745848896550,0.02980647,94124.0,94123.0,0.17917915]
[1745848896765,0.02980647,94124.0,94123.0,0.16289014]
[1745848900494,0.02980647,94124.0,94123.0,0.056]
[1745848901767,0.02980647,94124.0,94123.0,0.16289014]
[1745848903345,0.0048488,94149.0,94123.0,0.16289014]
[1745848903346,0.0478,94158.0,94148.0,0.001]
[1745848903496,0.0491,94168.0,94132.0,0.05]
[1745848903497,0.01661884,94156.0,94155.0,0.051]
[1745848903703,0.0491,94168.0,94155.0,0.051]
[1745848903704,0.0491,94168.0,94155.0,0.17367915]
[1745848903881,0.0491,94168.0,94131.0,0.11692]
[1745848903882,0.0478,94180.0,94167.0,0.05]
[1745848904082,0.0478,94180.0,94118.0,0.01069903]
[1745848904083,0.47597409,94170.0,94169.0,0.05]
[1745848904311,0.02908395,94170.0,94169.0,0.05]
[1745848905846,0.02908395,94170.0,94169.0,0.051]
[1745848906800,0.02908395,94170.0,94160.0,0.05]
[1745848906801,0.4352,94169.0,94160.0,0.05]
[1745848907006,0.34,94167.0,94151.0,0.001]
[1745848907205,0.34,94165.0,94151.0,0.001]
[1745848907523,0.02908395,94164.0,94154.0,0.001]
[1745848908758,0.02908395,94163.0,94160.0,0.001]
[1745848908952,0.02908395,94168.0,94160.0,0.001]
[1745848909228,0.10689014,94167.0,94151.0,0.001]
[1745848909431,0.36906591,94166.0,94158.0,0.001]
[1745848909703,0.14598591,94165.0,94158.0,0.001]
[1745848909911,0.02906591,94164.0,94158.0,0.001]
[1745848910043,0.02906591,94165.0,94158.0,0.001]
[1745848910447,0.02906591,94165.0,94164.0,0.001]
[1745848910684,0.02906591,94165.0,94159.0,0.001]
[1745848911044,0.34,94168.0,94156.0,0.001]
[1745848911045,0.02906591,94164.0,94156.0,0.001]
[1745848911252,0.34,94168.0,94156.0,0.001]
[1745848911253,0.10689014,94165.0,94156.0,0.001]
[1745848911451,0.02906591,94164.0,94156.0,0.001]
[1745848911668,0.01454085,94161.0,94144.0,0.001]
[1745848911872,0.01454085,94159.0,94142.0,0.001]
[1745848912086,0.34,94157.0,94142.0,0.001]
[1745848912301,0.34,94155.0,94142.0,0.001]
[1745848912495,0.10689014,94154.0,94142.0,0.001]
[1745848912652,0.02906591,94153.0,94142.0,0.001]
[1745848912854,0.10689014,94152.0,94142.0,0.001]
[1745848913036,0.02906591,94151.0,94142.0,0.001]
[1745848913446,0.02906591,94151.0,94146.0,0.001]
[1745848913647,0.02906591,94150.0,94146.0,0.001]
[1745848913848,0.02906591,94158.0,94146.0,0.001]
[1745848914056,0.10689014,94157.0,94146.0,0.001]
[1745848914297,0.02906591,94156.0,94146.0,0.001]
[1745848914499,0.10689014,94155.0,94146.0,0.001]
[1745848914696,0.02906591,94154.0,94146.0,0.004]
[1745848915088,0.02906591,94154.0,94146.0,0.001]
[1745848916319,0.02906591,94154.0,94153.0,0.001]
[1745848916638,0.02906591,94159.0,94153.0,0.001]
[1745848916786,0.02906591,94158.0,94153.0,0.001]
[1745848917046,0.02906591,94165.0,94153.0,0.001]
[1745848917369,0.02906591,94164.0,94163.0,0.001]
[1745848917795,0.0492,94179.0,94167.0,0.001]
[1745848918015,0.0492,94179.0,94149.0,0.00212404]
[1745848918016,0.0492,94179.0,94170.0,0.001]
[1745848918222,0.02990777,94171.0,94170.0,0.001]
[1745848919687,0.02990777,94171.0,94170.0,0.10789014]
[1745848919890,0.0008486,94171.0,94170.0,0.10789014]
[1745848920667,0.0008486,94171.0,94170.0,0.003]
[1745848921313,0.02988998,94171.0,94170.0,0.001]
[1745848921688,0.02988998,94171.0,94170.0,0.005]
[1745848922863,0.0008486,94171.0,94170.0,0.005]
[1745848923182,0.00075551,94171.0,94170.0,0.52164034]
[1745848923417,0.00075551,94171.0,94170.0,0.4147502]
[1745848923853,0.58650111,94171.0,94170.0,0.004]
[1745848924615,0.58650111,94171.0,94140.0,0.4097502]
[1745848924616,0.35454085,94170.0,94151.0,0.001]
[1745848924972,0.35454085,94168.0,94151.0,0.001]
[1745848925084,0.01454085,94165.0,94151.0,0.001]
[1745848925310,0.34,94163.0,94158.0,0.001]
[1745848925533,0.34,94163.0,94162.0,0.001]
[1745848925735,0.36901428,94163.0,94162.0,0.001]
[1745848926156,0.02901428,94163.0,94162.0,0.001]
[1745848926369,0.4106,94212.0,94162.0,0.4107502]
[1745848926569,0.09228985,94197.0,94162.0,0.4107502]
[1745848926780,0.02901691,94170.0,94169.0,0.001]
[1745848926983,0.02901691,94170.0,94162.0,0.4097502]
[1745848927194,0.02901691,94170.0,94169.0,0.001]
[1745848927428,0.02901691,94170.0,94162.0,0.4097502]
[1745848927658,0.02901691,94170.0,94168.0,0.001]
[1745848928125,0.36901691,94170.0,94168.0,0.001]
[1745848928366,0.01401691,94169.0,94165.0,0.001]
[1745848928613,0.01401691,94169.0,94162.0,0.4097502]
[1745848928614,0.01401691,94169.0,94168.0,0.001]
[1745848929759,0.01401691,94170.0,94168.0,0.001]
[1745848929987,0.34,94174.0,94168.0,0.001]
[1745848930203,0.34,94174.0,94170.0,0.001]
[1745848930204,0.05065551,94171.0,94170.0,0.001]
[1745848930432,0.07967645,94171.0,94170.0,0.001]
[1745848930677,0.0942173,94171.0,94162.0,0.4097502]
[1745848930926,0.01454085,94168.0,94151.0,0.001]
[1745848931154,0.01454085,94165.0,94153.0,0.001]
[1745848931381,0.35454085,94163.0,94153.0,0.001]
[1745848931613,0.35454085,94161.0,94153.0,0.001]
[1745848931841,0.35454085,94159.0,94153.0,0.001]
[1745848932073,0.01454085,94157.0,94153.0,0.001]
[1745848932300,0.46143099,94159.0,94142.0,0.4097502]
[1745848932301,0.02902094,94156.0,94155.0,0.001]
[1745848932548,0.34,94159.0,94155.0,0.001]
[1745848932549,0.02902094,94158.0,94155.0,0.001]
[1745848932769,0.02902094,94157.0,94155.0,0.001]
[1745848932993,0.34,94167.0,94166.0,0.001]
[1745848933235,0.36902202,94167.0,94166.0,0.001]
[1745848934148,0.02902202,94167.0,94166.0,0.001]
[1745848934385,0.11276,94177.0,94166.0,0.4107502]
[1745848934600,0.0498,94179.0,94170.0,0.001]
[1745848936239,0.02978744,94171.0,94170.0,0.001]
[1745848937807,0.02978744,94171.0,94170.0,0.003]
[1745848938488,0.02978744,94171.0,94170.0,0.41487387]
[1745848938723,0.00075551,94171.0,94170.0,0.4127502]
[1745848941396,0.02979443,94171.0,94170.0,0.4127502]
[1745848941602,0.00075551,94171.0,94170.0,0.4127502]
[1745848941796,0.00075551,94171.0,94170.0,0.51964034]
[1745848942002,0.004,94179.0,94178.0,0.001]
[1745848942207,0.004,94179.0,94178.0,0.11001316]
[1745848943190,0.004,94179.0,94178.0,0.11201316]
[1745848943330,0.004,94179.0,94178.0,0.17544522]
[1745848943534,0.004,94179.0,94178.0,0.22756809]
[1745848943797,0.0481,94210.0,94181.0,0.05]
[1745848943993,0.0481,94210.0,94182.0,0.10901298]
[1745848944421,0.0481,94210.0,94184.0,0.001]
[1745848944631,0.0481,94210.0,94184.0,0.11001298]
[1745848945170,0.0008486,94216.0,94207.0,0.001]
[1745848945372,0.0494484,94208.0,94207.0,0.001]
[1745848946680,0.0008484,94208.0,94207.0,0.001]
[1745848947949,0.019,94200.0,94197.0,0.00212258]
[1745848948153,0.019,94200.0,94194.0,0.00802524]
[1745848948154,0.019,94200.0,94188.0,0.00212286]
[1745848948155,0.0458,94199.0,94188.0,0.00212286]
[1745848948356,0.0458,94199.0,94184.0,0.001]
[1745848948759,0.02897534,94198.0,94185.0,0.10689014]
[1745848948976,0.0458,94199.0,94186.0,0.01291209]
[1745848949185,0.0458,94199.0,94187.0,0.10689014]
[1745848949378,0.019,94200.0,94188.0,0.00212307]
[1745848949582,0.019,94200.0,94189.0,0.10689014]
[1745848949717,0.019,94200.0,94190.0,0.08666587]
[1745848949917,0.019,94200.0,94191.0,0.12742464]
[1745848950291,0.019,94200.0,94192.0,0.00212296]
[1745848950473,0.019,94200.0,94193.0,0.10689014]
[1745848950671,0.019,94200.0,94194.0,0.00212279]
[1745848950849,0.009,94200.0,94195.0,0.10689014]
[1745848951050,0.009,94200.0,94196.0,0.00212273]
[1745848951257,0.009,94200.0,94197.0,0.10689014]
[1745848951475,0.009,94200.0,94198.0,0.00212273]
[1745848951710,0.009,94200.0,94199.0,0.10689014]
[1745848952313,0.009,94200.0,94199.0,0.10901288]
[1745848953065,0.009,94200.0,94199.0,0.11201288]
[1745848954268,0.009,94200.0,94199.0,0.52100757]
[1745848954472,0.009,94200.0,94199.0,0.51888483]
[1745848955173,0.009,94200.0,94199.0,0.56888483]
[1745848956233,0.009,94200.0,94199.0,0.56588483]
[1745848956452,0.01,94200.0,94199.0,0.56588483]
[1745848956667,0.0455,94226.0,94199.0,0.56588483]
[1745848956668,0.000848,94238.0,94221.0,0.40160109]
[1745848956872,0.000848,94238.0,94222.0,0.51061325]
[1745848957072,0.000848,94238.0,94224.0,0.05]
[1745848957295,0.000848,94238.0,94227.0,0.05]
[1745848957547,0.000848,94238.0,94228.0,0.10901192]
[1745848957748,0.000848,94238.0,94229.0,0.06852739]
[1745848957968,0.000848,94238.0,94230.0,0.109012]
[1745848958375,0.000848,94238.0,94231.0,0.40160109]
[1745848958586,0.000848,94238.0,94232.0,0.10901195]
[1745848960864,0.000848,94238.0,94234.0,0.10689014]
[1745848961058,0.000848,94238.0,94234.0,0.24005977]
[1745848961262,0.000848,94238.0,94234.0,0.17239749]
[1745848961463,0.000848,94238.0,94234.0,0.17451921]
[1745848961689,0.000848,94238.0,94234.0,0.24006006]
[1745848961893,0.000848,94238.0,94234.0,0.23793834]
[1745848962705,0.000848,94238.0,94234.0,0.57793834]
[1745848962909,0.0457,94262.0,94247.0,0.39390509]
[1745848963137,0.0457,94262.0,94248.0,0.54230731]
[1745848963342,0.0365484,94262.0,94248.0,0.54018574]
[1745848963669,0.0365484,94262.0,94249.0,0.00212159]
[1745848963867,0.0365484,94262.0,94250.0,0.10689014]
[1745848964081,0.0365484,94262.0,94251.0,0.00212159]
[1745848964285,0.0365484,94262.0,94252.0,0.16112087]
[1745848964488,0.0365484,94262.0,94253.0,0.00212151]
[1745848964697,0.0008484,94265.0,94254.0,0.50079523]
[1745848964900,0.0008484,94265.0,94255.0,0.00212137]
[1745848965103,0.0008484,94265.0,94256.0,0.10689014]
[1745848965360,0.0008484,94265.0,94257.0,0.06283597]
[1745848965563,0.0008484,94265.0,94258.0,0.10689014]
[1745848965763,0.0008484,94265.0,94259.0,0.00212121]
[1745848965986,0.0008484,94265.0,94260.0,0.10689014]
[1745848966197,0.0008484,94265.0,94261.0,0.00212133]
[1745848966397,0.0008484,94265.0,94262.0,0.11779129]
[1745848966654,0.0008484,94265.0,94263.0,0.00212137]
[1745848966862,0.0008484,94265.0,94255.0,0.00212141]
[1745848967072,0.0008484,94265.0,94256.0,0.10689014]
[1745848967279,0.0008484,94265.0,94257.0,0.00212142]
[1745848967459,0.0008484,94265.0,94258.0,0.13899587]
[1745848967759,0.0008484,94265.0,94262.0,0.002]
[1745848967974,0.0008484,94265.0,94263.0,0.00212143]
[1745848968390,0.0008484,94265.0,94264.0,0.10689014]
[1745848968995,0.0008484,94265.0,94264.0,0.50291654]
[1745848969195,0.0008484,94265.0,94264.0,0.55429746]
[1745848970186,0.0008484,94265.0,94264.0,0.50079523]
[1745848970377,0.0008478,94273.0,94267.0,0.39220869]
[1745848970582,0.0008478,94273.0,94268.0,0.10901109]
[1745848972105,0.0006958,94280.0,94268.0,0.10901109]
[1745848972308,0.0006958,94280.0,94269.0,0.10904]
[1745848972613,0.0006958,94280.0,94270.0,0.175037]
[1745848973231,0.0006958,94280.0,94270.0,0.10901102]
[1745848973456,0.0006958,94280.0,94271.0,0.10689014]
[1745848973802,0.0006958,94280.0,94272.0,0.0021208]
[1745848974018,0.0006958,94280.0,94273.0,0.10689014]
[1745848974201,0.0006958,94280.0,94274.0,0.00212085]
[1745848974408,0.0006958,94280.0,94275.0,0.12899524]
[1745848974648,0.0006958,94280.0,94276.0,0.39432955]
[1745848974857,0.0973,94279.0,94276.0,0.39220869]
[1745848977167,0.0973,94279.0,94276.0,0.39720869]
[1745848977592,0.0973,94279.0,94276.0,0.39220869]
[1745848977981,0.0006958,94280.0,94276.0,0.39220869]
[1745848977982,0.0006958,94280.0,94277.0,0.10901144]
[1745848978207,0.0006958,94280.0,94277.0,0.50122013]
[1745848978355,0.0006958,94280.0,94277.0,0.49909883]
[1745848978573,0.0006958,94280.0,94278.0,0.00212095]
[1745848978789,0.0006958,94280.0,94279.0,0.10689014]
[1745848978998,0.0006958,94280.0,94279.0,0.16133421]
[1745848979343,0.0006958,94280.0,94279.0,0.10689014]
[1745848980045,0.0467,94279.0,94277.0,0.34752964]
[1745848980251,0.0467,94279.0,94252.0,0.34752964]
[1745848980428,0.0467,94279.0,94255.0,0.08454291]
[1745848980657,0.0467,94279.0,94256.0,0.01159667]
[1745848981077,0.0459958,94280.0,94265.0,0.08454291]
[1745848981303,0.0459958,94280.0,94266.0,0.10901108]
[1745848981304,0.0006958,94280.0,94266.0,0.10901108]
[1745848981507,0.0006958,94280.0,94268.0,0.10689014]
[1745848981683,0.0006958,94280.0,94269.0,0.00212088]
[1745848981911,0.0006958,94280.0,94270.0,0.12634553]
[1745848982110,0.0006958,94280.0,94272.0,0.10689014]
[1745848982262,0.0006958,94280.0,94273.0,0.10901093]
[1745848982469,0.0413138,94296.0,94273.0,0.10901093]
[1745848982672,0.0413138,94296.0,94274.0,0.45441978]
[1745848982873,0.0413138,94296.0,94275.0,0.04982037]
[1745848983085,0.0413138,94296.0,94276.0,0.10689014]
[1745848983280,0.0413138,94296.0,94277.0,0.00212077]
[1745848983459,0.0413138,94296.0,94278.0,0.10689014]
[1745848983655,0.0413138,94296.0,94279.0,0.00212077]
[1745848983866,0.0413138,94296.0,94280.0,0.15731416]
[1745848984204,0.0413138,94296.0,94281.0,0.00212071]
[1745848984411,0.0413138,94296.0,94282.0,0.10689014]
[1745848984628,0.0413138,94296.0,94283.0,0.0021207]
[1745848984757,0.0413138,94296.0,94284.0,0.10689014]
[1745848984962,0.0413138,94296.0,94285.0,0.01816419]
[1745848985164,0.0413138,94296.0,94286.0,0.10689014]
[1745848985423,0.0413138,94296.0,94287.0,0.00212068]
[1745848985652,0.0413138,94296.0,94288.0,0.45441978]
[1745848985804,0.0413138,94296.0,94289.0,0.00212065]
[1745848986006,0.0413138,94296.0,94290.0,0.15414853]
[1745848986224,0.0413138,94296.0,94291.0,0.00212068]
[1745848986434,0.0413138,94296.0,94292.0,0.10689014]
[1745848986672,0.0413138,94296.0,94293.0,0.34965033]
[1745848986842,0.0413138,94296.0,94294.0,0.10689014]
[1745848987059,0.0413138,94296.0,94295.0,0.00212072]
[1745848987294,0.0413138,94296.0,94295.0,0.15466491]
[1745848987520,0.004,94299.0,94295.0,0.10901086]
[1745848987733,0.00390698,94299.0,94296.0,0.10689014]
[1745848987964,0.00390698,94299.0,94297.0,0.0021206]
[1745848988186,0.00390698,94299.0,94298.0,0.45441978]
[1745848989483,0.01454085,94353.0,94350.0,2.6900431]
[1745848989688,0.01454085,94351.0,94350.0,2.4964431]
[1745848989941,2.1950198,94351.0,94350.0,2.3467431]
[1745848990570,2.1960198,94351.0,94350.0,2.3467431]
[1745848990742,2.2278798,94351.0,94350.0,2.3467431]
[1745848990947,2.3345598,94351.0,94350.0,2.3467431]
[1745848991359,2.3335598,94351.0,94350.0,2.3467431]
[1745848991580,2.6416998,94351.0,94350.0,2.3467431]
[1745848995376,2.5350198,94351.0,94350.0,2.3467431]
[1745848995588,2.6416998,94351.0,94350.0,2.3467431]
[1745848996078,1.8963928,94351.0,94350.0,2.3467431]
[1745848996204,0.7096038,94351.0,94350.0,2.3467431]
[1745848996409,0.35621595,94351.0,94350.0,2.3467431]
[1745848996651,0.34613395,94351.0,94350.0,2.3467431]
[1745848996817,0.34613395,94351.0,94350.0,0.3467431]
[1745848997097,0.88363942,94351.0,94350.0,0.33634837]
[1745848997419,0.91269442,94351.0,94350.0,0.33634837]
[1745848997773,0.94455542,94351.0,94350.0,0.33634837]
[1745848998527,5.53172142,94351.0,94350.0,0.33634837]
[1745848998729,5.63840142,94351.0,94350.0,0.33634837]
[1745848998976,6.05000142,94351.0,94350.0,5e-08]
[1745848999188,1.30260142,94351.0,94350.0,5e-08]
[1745848999626,1.30460142,94351.0,94350.0,5e-08]
[1745849000193,1.35474081,94351.0,94350.0,5e-08]
[1745849000383,0.35454085,94318.0,94317.0,0.08454291]
[1745849000569,4.28361399,94318.0,94317.0,0.08454291]
[1745849000769,4.26312799,94318.0,94317.0,0.08454291]
[1745849000982,4.47517659,94318.0,94317.0,0.08454291]
[1745849001194,4.26312799,94318.0,94317.0,0.08454291]
[1745849001770,4.16723099,94318.0,94317.0,0.08454291]
[1745849002463,3.47687199,94318.0,94317.0,0.08454291]
[1745849002686,3.50594939,94318.0,94317.0,0.08454291]
[1745849003142,3.39926939,94318.0,94317.0,0.08454291]
[1745849003339,3.50594939,94318.0,94317.0,0.08454291]
[1745849003752,0.01454085,94315.0,94307.0,0.08454291]
[1745849003958,0.35454085,94313.0,94307.0,0.08454291]
[1745849004165,0.01454085,94310.0,94307.0,0.08454291]
[1745849004381,0.35454085,94308.0,94307.0,0.08454291]
[1745849004582,0.46143099,94308.0,94307.0,0.08454291]
[1745849005850,0.44689014,94308.0,94307.0,0.08454291]
[1745849006054,0.44689014,94308.0,94307.0,0.08554291]
[1745849006495,0.0525,94321.0,94307.0,0.08454291]
[1745849006729,0.15939014,94321.0,94308.0,0.0487]
[1745849006948,0.10672,94326.0,94317.0,0.08454291]
[1745849007174,0.00212103,94325.0,94317.0,0.08454291]
[1745849007379,0.10672,94326.0,94317.0,0.08454291]
[1745849007803,0.002,94321.0,94317.0,0.08454291]
[1745849008018,0.002,94321.0,94318.0,0.00212031]
[1745849008223,0.002,94321.0,94319.0,0.0464]
[1745849008417,0.002,94321.0,94320.0,0.00212021]
[1745849008660,0.002,94321.0,94320.0,0.34964985]
[1745849008858,0.002,94321.0,94320.0,0.39442964]
[1745849009770,0.10672,94337.0,94320.0,0.39442964]
[1745849009939,0.3511388,94356.0,94320.0,0.39442964]
[1745849009940,0.001,94326.0,94321.0,0.00212005]
[1745849010349,0.00212103,94347.0,94321.0,0.00212005]
[1745849010571,0.34,94345.0,94321.0,0.00212005]
[1745849010780,0.34,94343.0,94321.0,0.00212005]
[1745849010989,0.34,94343.0,94322.0,0.34752964]
[1745849010990,0.0312022,94342.0,94322.0,0.34752964]
[1745849011195,0.34,94340.0,94323.0,0.00212005]
[1745849011397,0.00212103,94339.0,94323.0,0.00212005]
[1745849011557,0.34,94338.0,94322.0,0.34752964]
[1745849011764,0.34,94336.0,94322.0,0.34752964]
[1745849012001,0.0312022,94335.0,94322.0,0.34752964]
[1745849012215,0.02908117,94334.0,94322.0,0.34752964]
[1745849012409,0.00212103,94333.0,94322.0,0.34752964]
[1745849012632,0.02908117,94332.0,94322.0,0.34752964]
[1745849013039,0.02908117,94334.0,94322.0,0.34752964]
[1745849013240,0.00212103,94333.0,94322.0,0.34752964]
[1745849013456,0.02908117,94332.0,94322.0,0.34752964]
[1745849013767,0.02908117,94334.0,94323.0,0.00212021]
[1745849013918,0.02908117,94331.0,94323.0,0.00212021]
[1745849014099,0.34,94339.0,94323.0,0.00212021]
[1745849014301,0.02908544,94338.0,94323.0,0.00212021]
[1745849014909,0.03120647,94338.0,94323.0,0.00212021]
[1745849015124,0.34,94336.0,94322.0,0.34752964]
[1745849015331,0.03120647,94335.0,94322.0,0.34752964]
[1745849015590,0.02908544,94334.0,94322.0,0.34752964]
[1745849016188,0.02908544,94334.0,94323.0,0.001]
[1745849016416,0.00212103,94333.0,94323.0,0.001]
[1745849016702,0.00212103,94333.0,94322.0,0.34752964]
[1745849016703,0.00212103,94335.0,94322.0,0.34752964]
[1745849016948,0.02906825,94334.0,94322.0,0.34852964]
[1745849017164,0.00212103,94333.0,94322.0,0.34852964]
[1745849018947,0.14853053,94352.0,94331.0,0.08454291]
[1745849019098,0.44901117,94351.0,94331.0,0.08454291]
[1745849019455,0.34,94349.0,94331.0,0.08454291]
[1745849019650,0.34,94347.0,94331.0,0.08454291]
[1745849019837,0.01454085,94344.0,94324.0,0.0455]
[1745849020026,0.34,94342.0,94324.0,0.0455]
[1745849020224,0.34,94340.0,94324.0,0.0455]
[1745849020491,0.34,94338.0,94324.0,0.0455]
[1745849020707,0.34,94336.0,94324.0,0.0455]
[1745849020911,0.34,94334.0,94324.0,0.0455]
[1745849021151,0.34,94332.0,94324.0,0.0455]
[1745849021380,0.34,94330.0,94324.0,0.0455]
[1745849022450,0.34,94335.0,94324.0,0.0455]
[1745849022660,0.34,94335.0,94325.0,0.08666306]
[1745849023076,0.10492,94350.0,94325.0,0.10456937]
[1745849023292,0.00212103,94349.0,94326.0,0.0484]
[1745849023503,0.02906313,94349.0,94327.0,0.00211984]
[1745849023724,0.02906313,94348.0,94327.0,0.00211984]
[1745849023927,0.36906313,94349.0,94328.0,0.0484]
[1745849024097,0.02906313,94348.0,94329.0,0.00211983]
[1745849024750,0.34,94349.0,94329.0,0.00211983]
[1745849025688,0.34,94351.0,94329.0,0.00211983]
[1745849025909,0.03116984,94350.0,94329.0,0.00211983]
[1745849026115,0.02904881,94349.0,94329.0,0.00211983]
[1745849026519,0.00212103,94350.0,94329.0,0.00211983]
[1745849027347,0.13593431,94349.0,94328.0,0.0484]
[1745849027590,0.00212103,94348.0,94328.0,0.0484]
[1745849027798,0.34,94346.0,94328.0,0.0484]
[1745849028000,0.34,94344.0,94328.0,0.0484]
[1745849028206,0.34,94342.0,94328.0,0.0484]
[1745849028704,0.34,94342.0,94329.0,0.00212007]
[1745849029255,0.00212103,94341.0,94328.0,0.05051991]
[1745849029501,0.00212103,94349.0,94328.0,0.0484]
[1745849029823,0.34,94340.0,94328.0,0.0484]
[1745849029969,0.00212103,94339.0,94329.0,0.001]
[1745849030585,0.00212103,94339.0,94328.0,0.0484]
[1745849031908,0.34,94350.0,94329.0,0.00212008]
[1745849032191,0.03116065,94349.0,94329.0,0.00212008]
[1745849032344,0.34,94347.0,94329.0,0.00212008]
[1745849032707,0.34,94345.0,94329.0,0.00212008]
[1745849032881,0.34,94343.0,94329.0,0.00412008]
[1745849033285,0.00212103,94342.0,94329.0,0.00412008]
[1745849033488,0.00212103,94342.0,94330.0,0.34752964]
[1745849033808,0.34,94343.0,94330.0,0.34752964]
[1745849034716,0.05803723,94366.0,94335.0,0.08454291]
[1745849034910,0.00296783,94356.0,94336.0,0.00211975]
[1745849035161,0.00296783,94356.0,94337.0,0.0474]
[1745849035365,0.34,94355.0,94338.0,0.39664938]
[1745849035568,0.00212103,94354.0,94338.0,0.39452964]
[1745849035767,0.03116657,94354.0,94338.0,0.39452964]
[1745849035891,0.34,94352.0,94338.0,0.39452964]
[1745849036091,0.03116657,94351.0,94338.0,0.39452964]
[1745849036289,0.02904554,94350.0,94338.0,0.39452964]
[1745849036491,0.34,94348.0,94338.0,0.39452964]
[1745849036745,0.34,94346.0,94338.0,0.39452964]
[1745849036893,0.34,94344.0,94338.0,0.39452964]
[1745849037092,0.00212103,94343.0,94338.0,0.39452964]
[1745849037294,0.44689014,94344.0,94338.0,0.39552964]
[1745849037499,0.34,94344.0,94338.0,0.39552964]
[1745849038154,0.0008468,94356.0,94340.0,0.08454291]
[1745849038411,0.0008468,94356.0,94342.0,0.0486]
[1745849038612,0.0008468,94356.0,94343.0,0.00211964]
[1745849040531,0.02910283,94355.0,94343.0,0.00211964]
[1745849041483,0.00728266,94354.0,94343.0,0.00211964]
[1745849041838,0.02910283,94353.0,94343.0,0.00211964]
[1745849042445,0.00728266,94352.0,94343.0,0.00211964]
[1745849042645,0.02910283,94351.0,94343.0,0.00211964]
[1745849043346,0.00728266,94350.0,94343.0,0.00211964]
[1745849043564,0.00728266,94350.0,94343.0,0.00411964]
[1745849044328,0.00728266,94350.0,94344.0,0.0489]
[1745849044529,0.0008468,94356.0,94345.0,0.00211941]
[1745849044530,0.00728266,94349.0,94345.0,0.00211941]
[1745849045075,0.00728266,94349.0,94346.0,0.34752964]
[1745849045284,0.00728266,94348.0,94347.0,0.00211942]
[1745849045545,0.00728266,94348.0,94347.0,0.05141942]
[1745849045742,0.00728266,94348.0,94347.0,0.20380956]
[1745849045983,0.0008468,94356.0,94348.0,0.048]
[1745849046185,0.004,94359.0,94351.0,0.08454291]
[1745849046389,0.0008472,94374.0,94355.0,0.0472]
[1745849046602,0.0008472,94374.0,94363.0,0.0948]
[1745849046812,0.0008472,94374.0,94365.0,0.0472]
[1745849047013,0.0008472,94374.0,94366.0,0.21979736]
[1745849047268,0.0008472,94374.0,94367.0,0.0493]
[1745849047465,0.0008472,94374.0,94368.0,0.10900919]
[1745849048391,0.0008472,94374.0,94367.0,0.05141905]
[1745849048620,0.34,94368.0,94367.0,0.0493]
[1745849049660,0.34,94368.0,94364.0,0.34752964]
[1745849050005,0.10408,94385.0,94372.0,0.001]
[1745849050204,3.68973317,94384.0,94378.0,0.002]
[1745849050410,4.294686,94383.0,94378.0,0.002]
[1745849050797,2.46787917,94382.0,94378.0,0.002]
[1745849051046,2.41042703,94381.0,94378.0,0.002]
[1745849051238,0.39239017,94380.0,94378.0,0.002]
[1745849051484,0.224005,94379.0,94378.0,0.002]
[1745849051708,0.10689014,94379.0,94378.0,0.002]
[1745849051958,0.00212103,94397.0,94387.0,0.1]
[1745849052193,0.031835,94423.0,94417.0,0.1]
[1745849052439,0.01458772,94449.0,94425.0,0.001]
[1745849052440,0.004,94449.0,94425.0,0.001]
[1745849052676,0.004,94449.0,94439.0,0.1]
[1745849052897,0.004,94449.0,94443.0,0.001]
[1745849052898,0.532275,94444.0,94443.0,0.001]
[1745849053102,0.59658,94444.0,94443.0,0.001]
[1745849053748,0.34,94444.0,94443.0,0.001]
[1745849053953,0.10404,94444.0,94443.0,0.001]
[1745849054179,0.004,94449.0,94443.0,0.001]
[1745849054384,0.10404,94444.0,94443.0,0.001]
[1745849054558,0.34,94443.0,94438.0,0.001]
[1745849054855,1.10586714,94444.0,94443.0,0.001]
[1745849054856,0.10404,94444.0,94443.0,0.001]
[1745849055078,0.21093014,94444.0,94437.0,0.001]
[1745849055289,0.34,94442.0,94432.0,0.001]
[1745849055497,0.34,94440.0,94432.0,0.001]
[1745849055642,0.34,94440.0,94426.0,0.0919]
[1745849055643,0.34,94438.0,94426.0,0.0919]
[1745849055846,0.34,94436.0,94426.0,0.0919]
[1745849056079,0.34,94434.0,94426.0,0.0919]
[1745849056236,0.34,94434.0,94431.0,0.001]
[1745849056444,0.0008464,94445.0,94435.0,0.001]
[1745849056628,0.34,94443.0,94435.0,0.001]
[1745849056823,0.34,94441.0,94435.0,0.001]
[1745849057028,0.34,94439.0,94437.0,0.001]
[1745849057233,0.0008464,94445.0,94444.0,0.001]
[1745849057435,0.0008464,94445.0,94444.0,0.34852964]
[1745849057672,0.21177654,94445.0,94444.0,0.34852964]
[1745849057873,0.0008464,94445.0,94444.0,0.34852964]
[1745849058077,0.4448864,94445.0,94444.0,0.34852964]
[1745849058995,0.4448864,94445.0,94444.0,0.35352964]
[1745849059629,0.4448864,94445.0,94444.0,0.35252964]
[1745849059630,0.55177654,94445.0,94444.0,0.35252964]
[1745849059926,1.20204654,94445.0,94444.0,0.35252964]
[1745849060235,0.55177654,94445.0,94444.0,0.35252964]
[1745849060756,1.02957154,94445.0,94444.0,0.35252964]
[1745849060963,1.02957154,94445.0,94444.0,0.34752964]
[1745849061388,1.02957154,94445.0,94444.0,0.34852964]
[1745849061799,1.02957154,94445.0,94444.0,0.34752964]
[1745849062219,1.02957154,94445.0,94444.0,0.34852964]
[1745849062856,1.02957154,94445.0,94444.0,0.001]
[1745849063480,1.04411239,94445.0,94444.0,0.001]
[1745849064275,1.25587585,94445.0,94444.0,0.001]
[1745849064486,1.28473633,94445.0,94444.0,0.001]
[1745849064912,1.18069633,94445.0,94444.0,0.001]
[1745849065117,0.01454085,94437.0,94414.0,0.34752964]
[1745849065317,0.35454085,94432.0,94415.0,0.08454291]
[1745849065565,0.35454085,94430.0,94415.0,0.08454291]
[1745849065772,0.35454085,94428.0,94415.0,0.08454291]
[1745849065981,0.35454085,94426.0,94415.0,0.08454291]
[1745849066182,0.34,94424.0,94415.0,0.08454291]
[1745849066396,0.34,94422.0,94415.0,0.08454291]
[1745849066596,0.444,94421.0,94420.0,0.001]
[1745849068339,0.01854085,94449.0,94431.0,0.001]